{"text_format":"1","workbook":"xlsx","n_sheets":2,"sheets":["Anleitung","Zielgruppenabfrage"],"not_rendered":{"charts":0,"images":2,"macros":1,"external_links":0,"defined_names":2,"comments":0,"pivot_tables":0},"unopened":[],"bounds":{"document_bytes":16777216,"sheet_cells":100000,"rows_first":2000,"rows_last":500,"rows_between":2000,"halvings":0,"cell_chars":16384,"cell_head_chars":4096},"cells_cut":0,"cells_raw":0,"read":"whole","date_system":"1900"}

{"sheet":"Anleitung","index":0,"n_rows":11,"n_cols":2,"rows_kept":11,"cut":false,"hidden":false,"merged":[[10,1,10,10],[7,9,7,10],[1,1,1,8],[2,1,2,10],[4,1,4,10],[6,1,6,10],[8,9,9,10]]}
[]
[]
[null,"Herzlich willkommen!\nWir freuen uns, dass Sie an einem unserer Fachkurse teilnehmen wollen und begrüßen Sie herzlich."]
[]
[null,"Berufliche Fortbildung ist auch ein Anliegen der Europäischen Union. \nDas Ministerium für Finanzen und Wirtschaft Baden-Württemberg bietet daher aus Mitteln des Europäischen Sozialfonds ein \"Förderprogramm Fachkurse\" an, mit dem für bestimmte Zielgruppen die Kursgebühr um 30% reduziert werden kann. Sollten Sie das 50. Lebensjahr bereits vollendet haben bzw. während des Kurses vollenden, kann die Kursgebühr um 50% reduziert werden.\nWenn Sie an einem Fachkurs zur Elektromobilität teilnehmen, beträgt der Zuschuss immer 50%."]
[]
[null,"Damit Sie selbst und wir feststellen können, ob Sie einer Zielgruppe angehören und ein Zuschuss möglich ist, benötigen wir Ihre Mithilfe. \nBitten füllen Sie hierfür den beiliegenden Fragebogen vollständig aus.\n\nWir wünschen Ihnen viel Spaß beim Vertiefen Ihres Wissens und viel Erfolg beim Umsetzen in der Praxis!"]
[]
[]
[]
[null,"Unterstützt durch das Ministerium für Finanzen und Wirtschaft Baden-Württemberg aus Mitteln des Europäischen Sozialfonds."]

{"sheet":"Zielgruppenabfrage","index":1,"n_rows":114,"n_cols":12,"rows_kept":114,"cut":false,"hidden":false,"merged":[[83,2,83,5],[71,3,71,4],[2,0,2,5],[5,0,5,7],[28,1,28,4],[30,1,30,4],[45,3,45,5],[76,3,76,5],[49,3,49,5],[55,2,55,5],[4,0,4,7],[15,1,15,4],[17,1,17,4],[34,1,34,5],[19,1,19,4],[21,1,21,4],[80,3,80,5],[59,3,59,5],[62,3,62,5],[0,0,1,7],[9,1,9,4],[11,1,11,4],[13,1,13,4],[41,2,41,5],[7,1,7,5],[63,3,63,5],[23,1,23,4],[26,1,26,4],[43,3,43,4],[73,3,73,5],[32,1,32,4],[77,3,77,5],[108,1,108,5],[87,3,87,5],[95,1,95,5],[99,1,99,5],[93,1,93,2],[94,1,94,5],[52,3,52,5],[66,3,66,5],[69,2,69,5],[48,3,48,5],[113,1,113,3],[105,1,105,5],[111,5,112,5],[90,3,90,5],[106,1,106,6],[109,1,109,6],[100,1,100,5],[103,1,103,6],[101,1,101,5],[102,1,102,5],[112,1,112,3],[97,1,97,5]]}
[]
[]
["Zielgruppenabfrage"]
[]
["Wir bitten Sie, den Fragebogen elektronisch auszufüllen."]
["Hinweis:\nBeschäftigte von Bund, Ländern und kommunalen Gebietskörperschaften können keinen Zuschuss erhalten. "]
[]
[null,"I. Allgemeine Angaben"]
[]
[null,"Name"]
[]
[null,"Vorname"]
[]
[null,"Geburtsdatum (TT.MM.JJJJ)\n(wenn Sie hierzu keine Angabe machen, beträgt der Zuschuss maximal 30 %; außer bei Fachkursen zur Elektromobilität.)",null,null,null,null,null,null,null,{"$f":"F14","v":"00:00:00"}]
[]
[null,"Straße mit Hausnummer"]
[]
[null,"Postleitzahl"]
[]
[null,"Wohnort"]
[]
[null,"Telefonnummer"]
[]
[null,"E-Mail-Adresse"]
[]
[]
[null,"Wie lautet Ihr Kurstitel?",null,null,null,"Energieberater - erste Schritte "]
[]
[null,"Mit welcher Kursnummer?",null,null,null,"wird vom GIH ausgefüllt"]
[null,null,null,null,null,null,null,null,null,"Tage","Jahre","Abrunden"]
[null,"Wann beginnt Ihr Kurs?",null,null,null,"2017-05-12",null,null,null,{"$f":"F31-F14","v":"2017-05-12"},{"$f":"IF(AND(F14>0,F31>0),DATEDIF(F14,F31,\"Y\"),0)","v":0},{"$f":"ROUNDDOWN(K31,0)","v":0}]
[null,null,null,null,null,null,null,null,null,"Tage","Jahre","Abrunden"]
[null,"Wann endet er?",null,null,null,"2017-05-13",null,null,null,{"$f":"F33-F14","v":"2017-05-13"},{"$f":"IF(AND(F14>0,F33>0),DATEDIF(F14,F33,\"Y\"),0)","v":0},{"$f":"ROUNDDOWN(K33,0)","v":0}]
[]
[null,"Vielen Dank für Ihre ersten Angaben.",null,null,null,null,null,null,null,{"$f":"F33","v":42868},{"$f":"F31","v":42867}]
[]
[null,null,null,null,null,null,null,null,null,{"$f":"IF(OR(J14=0,J35=0),0,1)","v":0}]
[null,"II. Gehören Sie zu einer der folgenden Zielgruppen?"]
[]
[]
[]
[null,"1.","Sind Sie Beschäftigte/r in einem Unternehmen (hierunter fallen auch Auszubildende)?"]
[null,null,null,"nein",null,null,null,null,null,0]
[null,null,null,"ja, Name der Firma:"]
[]
[null,null,null,"Falls ja: liegt Ihr Wohnort in Baden-Württemberg?",null,null,null,null,null,0]
[null,null,null,null,"nein ",null,null,null,null,0]
[null,null,null,null,"ja, siehe Angabe unter I.",null,null,null,null,{"$f":"IF(AND(J43=2,J46=2),1,0)","v":0},{"$f":"IF(OR(J46=1,J43=1),5,0)","v":0}]
[]
[null,null,null,"Falls Ihr Wohnort nicht in Baden-Württemberg liegt: liegt Ihr Beschäftigungsort in Baden-Württemberg?",null,null,null,null,null,0]
[null,null,null,null,"nein ",null,null,null,null,0]
[null,null,null,null,"ja, in:",null,null,null,null,{"$f":"IF(AND(J43=2,J50=2),1,0)","v":0},{"$f":"IF(OR(J43=1,J50=1),5,0)","v":0}]
[]
[null,null,null,null,null,null,null,null,null,{"$f":"IF(OR(J48=1,J52=1),1,0)","v":0},{"$f":"IF(AND(K48=5,K52=5),6,0)","v":0}]
[]
[null,"2.","Sind Sie gründungswillig?"]
[null,null,null,"nein",null,null,null,null,null,0]
[null,null,null,"ja"]
[]
[null,null,null,"Falls ja: liegt Ihr Wohnort in Baden-Württemberg?",null,null,null,null,null,0]
[null,null,null,null,"nein ",null,null,null,null,0]
[null,null,null,null,"ja, siehe Angabe unter I.",null,null,null,null,{"$f":"IF(AND(J57=2,J60=2),1,0)","v":0},{"$f":"IF(OR(J60=1,J57=1),5,0)","v":0}]
[]
[null,null,null,"Falls Ihr Wohnort nicht in Baden-Württemberg liegt: liegt Ihr Beschäftigungsort in Baden-Württemberg?",null,null,null,null,null,0]
[null,null,null,null,"nein ",null,null,null,null,0]
[null,null,null,null,"ja, in:",null,null,null,null,{"$f":"IF(AND(J57=2,J64=2),1,0)","v":0},{"$f":"IF(OR(J57=1,J64=1),5,0)","v":0}]
[]
[null,null,null,null,null,null,null,null,null,{"$f":"IF(OR(J62=1,J66=1),1,0)","v":0},{"$f":"IF(AND(K62=5,K66=5),7,0)","v":0}]
[]
[null,"3.","Sind Sie Unternehmer/-in, Freiberufler/-in oder Existenzgründer/-in in Baden-Württemberg?"]
[null,null,null,"nein",null,null,null,null,null,0]
[null,null,null,"ja, Name der Firma:"]
[]
[null,null,null,"Falls ja: liegt Ihr Wohnort in Baden-Württemberg?",null,null,null,null,null,0]
[null,null,null,null,"nein ",null,null,null,null,0]
[null,null,null,null,"ja, siehe Angabe unter I.",null,null,null,null,{"$f":"IF(AND(J71=2,J74=2),1,0)","v":0},{"$f":"IF(OR(J74=1,J71=1),5,0)","v":0}]
[]
[null,null,null,"Falls Ihr Wohnort nicht in Baden-Württemberg liegt: liegt Ihr Unternehmenssitz in Baden-Württemberg?",null,null,null,null,null,0]
[null,null,null,null,"nein ",null,null,null,null,0]
[null,null,null,null,"ja, in:",null,null,null,null,{"$f":"IF(AND(J71=2,J78=2),1,0)","v":0},{"$f":"IF(OR(J71=1,J78=1),5,0)","v":0}]
[]
[null,null,null,null,null,null,null,null,null,{"$f":"IF(OR(J76=1,J80=1),1,0)","v":0},{"$f":"IF(AND(K76=5,K80=5),8,0)","v":0}]
[]
[null,"4.","Sind Sie Wiedereinsteiger/-in?"]
[null,null,null,"nein",null,null,null,null,null,0]
[null,null,null,"ja"]
[]
[null,null,null,"Falls ja: liegt Ihr Wohnort in Baden-Württemberg?",null,null,null,null,null,0]
[null,null,null,null,"nein ",null,null,null,null,0]
[null,null,null,null,"ja, siehe Angabe unter I.",null,null,null,null,{"$f":"IF(AND(J85=2,J88=2),1,0)","v":0},{"$f":"IF(OR(J88=1,J85=1),9,0)","v":0}]
[]
[]
[]
[null,"Ergebnis:"]
[null,{"$f":"IF(AND(K103>0,J103=0),\"Sie gehören leider keiner Zielgruppe des Förderprogramms Fachkurse an und können daher keinen Zuschuss erhalten! Bitte prüfen Sie Ihre Daten auf Vollständigkeit.\",\" \")","v":" "},null,null,null,null,null,null,null,"prozentsatz"]
[null,{"$f":"IF(J103>0,\"Gratulation, Sie gehören einer Zielgruppe des Förderprogramm Fachkurse an!\",\" \")","v":" "},null,null,null,null,null,null,null,{"$f":"IF(K33>=50,\"50%\",\"30%\")","v":"30%"}]
[]
[null,{"$f":"IF(J103>0,\"Wenn Sie sich für einen aus Mitteln des Europäischen Sozialfonds geförderten Fachkurs anmelden, können Sie einen Zuschuss in Höhe von\",\" \")","v":" "},null,null,null,null,null,null,null,"Zielgruppe"]
[null,null,null,null,{"$f":"IF(AND(J96>0,J103>0),J96,\"\")","v":""},{"$f":"IF(J103>0,\"der zuschussfähigen Kursgebühren erhalten.\",\" \")","v":" "},null,null,null,{"$f":"J54","v":0},{"$f":"K54","v":0}]
[null,null,null,null,null,null,null,null,null,{"$f":"J68","v":0},{"$f":"K68","v":0}]
[null,{"$f":"IF(J103>0,\"Wenn Sie an einem Fachkurs zur Elektromobilität teilnehmen, beträgt der Zuschuss immer 50%.\",\"\")","v":""},null,null,null,null,null,null,null,{"$f":"J82","v":0},{"$f":"K82","v":0}]
[null,null,null,null,null,null,null,null,null,{"$f":"J90","v":0},{"$f":"K90","v":0}]
[null,null,null,null,null,null,null,null,null,{"$f":"IF(OR(J99>0,J100>0,J101>0,J102>0),\"JA\",0)","v":0},{"$f":"IF(AND(K99>0,K100>0,K101>0,K102>0),\"NEIN\",0)","v":0}]
[null,"Hinweise: \n▪ Geringes Einkommen: Interessierte, die ein zu versteuerndes Einkommen von bis zu 20.000€ bzw. \n    40.000€  in Lebensgemeinschaften haben, können über das Förderprogramm \"Bildungsprämie\", \n  www.bildungspraemie.info ggf. eine finanziell attraktivere Förderung beantragen.\n▪ Arbeitslose: Für Arbeitslose wird von den Agenturen für Arbeit i.d.R. eine finanziell attraktivere \n    Förderung angeboten."]
[]
[null,"Hinweis"]
[null,"Das Förderprogramm Fachkurse, an dem Sie teilnehmen wollen, wird aus Mitteln des Europäischen Sozialfonds (ESF) finanziert. Die Europäische Union verlangt, dass bei allen Maßnahmen, die aus Geldern des ESF finanziert werden, von den Teilnehmenden personenbezogene Daten zum Erwerbsstatus, Alter, Geschlecht, Bildungsstatus und zur Haushaltssituation (Pflichtangaben) sowie zu Behinderung, zum Migrationshintergrund und zu sonstigen Benachteiligungen erhoben werden. Diese Daten werden mit einem separaten Teilnahmefragebogen erhoben."]
[]
[null,"Bestätigung"]
[null,"Um beurteilen zu können, ob Sie alle Voraussetzungen für eine ESF-Förderung erfüllen, sind Angaben zur Zielgruppe erforderlich. Die Angabe dieser personenbezogenen Daten ist freiwillig. Eine Förderung ist aber nur möglich, wenn festgestellt werden kann, ob Sie einer Zielgruppe angehören.\n\nIch bin mit der Erhebung, Verarbeitung und Nutzung der personenbezogenen Daten ausschließlich zu Zwecken der Durchführung, Bewertung und Evaluation der ESF-Fachkursförderung einverstanden. Meine Angaben sind vollständig und richtig."]
[]
[]
[]
[null,"Ort, Datum",null,null,null,"Unterschrift"]